Department Family,Entity,Date,Expense Type,Expense Area,Supplier Name,Transaction Number,Amount,Description
Business Unit Name,Business Unit Name,Invoice Date,CC Parent 3,CC Parent 2,Supplier Name,Invoice Number,Invoice Amount,Subjective Description
York and Scarborough Teaching Hospitals NHS Foundation Trust,York and Scarborough Teaching Hospitals NHS Foundation Trust BU,30/03/2022,CAPITAL,I.T PLANNING,Parity Medical,19126,"135,609.36",Additions - Information Technology
York and Scarborough Teaching Hospitals NHS Foundation Trust,York and Scarborough Teaching Hospitals NHS Foundation Trust BU,06/04/2022,OPERATING EXPENDITURE,PHARMACY,Lloyds Pharmacy Ltd,107123,"896,230.27",Drugs
York and Scarborough Teaching Hospitals NHS Foundation Trust,York and Scarborough Teaching Hospitals NHS Foundation Trust BU,19/04/2022,Cancer and Support Services,Hull York Pathology Service,Elitech Uk Ltd,56743,"39,624.00",Laboratory Test Kits
York and Scarborough Teaching Hospitals NHS Foundation Trust,York and Scarborough Teaching Hospitals NHS Foundation Trust BU,31/03/2022,OPERATING EXPENDITURE,PHARMACY,CareFlow Medicines Management Ltd,31640,"48,540.00",Computer Maintenance
York and Scarborough Teaching Hospitals NHS Foundation Trust,York Teaching Hospital Facilities Management LLP BU,29/04/2022,BALANCE SHEET,LLP FINANCE - BALANCE SHEET,Sovereign Air Movement Ltd,74046,"52,337.40",Work-In-Progress
York and Scarborough Teaching Hospitals NHS Foundation Trust,York and Scarborough Teaching Hospitals NHS Foundation Trust BU,16/03/2022,OPERATING EXPENDITURE,PHARMACY,NHS Business Services Authority,1000072622,"51,190.07",FP10'S
York and Scarborough Teaching Hospitals NHS Foundation Trust,York and Scarborough Teaching Hospitals NHS Foundation Trust BU,22/04/2022,OPERATING EXPENDITURE,PHARMACY,NHS Business Services Authority,1000072956,"50,777.75",FP10'S
York and Scarborough Teaching Hospitals NHS Foundation Trust,York Teaching Hospital Facilities Management LLP BU,29/04/2022,BALANCE SHEET,LLP FINANCE - BALANCE SHEET,Schneider Electric Ltd,100417691,"32,081.40",Work-In-Progress
York and Scarborough Teaching Hospitals NHS Foundation Trust,York Teaching Hospital Facilities Management LLP BU,04/04/2022,BALANCE SHEET,LLP FINANCE - BALANCE SHEET,Kier Construction - North and Scotland,10284159,"972,754.26",Work-In-Progress
York and Scarborough Teaching Hospitals NHS Foundation Trust,York Teaching Hospital Facilities Management LLP BU,12/05/2022,BALANCE SHEET,LLP FINANCE - BALANCE SHEET,Kier Construction - North and Scotland,10286941,"172,767.76",Work-In-Progress
York and Scarborough Teaching Hospitals NHS Foundation Trust,York Teaching Hospital Facilities Management LLP BU,19/05/2022,BALANCE SHEET,LLP FINANCE - BALANCE SHEET,Kier Construction - North and Scotland,10287300,"299,072.92",Work-In-Progress
York and Scarborough Teaching Hospitals NHS Foundation Trust,York and Scarborough Teaching Hospitals NHS Foundation Trust BU,01/04/2022,BALANCE SHEET,FINANCE - BALANCE SHEET,NHS Supply Chain Co-ordination Limited,1123000828,"80,696.57",Other Creditors < One Year
York and Scarborough Teaching Hospitals NHS Foundation Trust,York and Scarborough Teaching Hospitals NHS Foundation Trust BU,08/04/2022,BALANCE SHEET,FINANCE - BALANCE SHEET,NHS Supply Chain Co-ordination Limited,1123003327,"330,004.58",Other Creditors < One Year
York and Scarborough Teaching Hospitals NHS Foundation Trust,York and Scarborough Teaching Hospitals NHS Foundation Trust BU,15/04/2022,BALANCE SHEET,FINANCE - BALANCE SHEET,NHS Supply Chain Co-ordination Limited,1123009446,"341,239.28",Other Creditors < One Year
York and Scarborough Teaching Hospitals NHS Foundation Trust,York and Scarborough Teaching Hospitals NHS Foundation Trust BU,22/04/2022,BALANCE SHEET,FINANCE - BALANCE SHEET,NHS Supply Chain Co-ordination Limited,1123014809,"315,414.55",Other Creditors < One Year
York and Scarborough Teaching Hospitals NHS Foundation Trust,York and Scarborough Teaching Hospitals NHS Foundation Trust BU,29/04/2022,BALANCE SHEET,FINANCE - BALANCE SHEET,NHS Supply Chain Co-ordination Limited,1123019090,"347,128.25",Other Creditors < One Year
York and Scarborough Teaching Hospitals NHS Foundation Trust,York Teaching Hospital Facilities Management LLP BU,30/03/2022,BALANCE SHEET,LLP FINANCE - BALANCE SHEET,Transforming Healthcare Consultancy Limited,1141,"114,000.00",Work-In-Progress
York and Scarborough Teaching Hospitals NHS Foundation Trust,York and Scarborough Teaching Hospitals NHS Foundation Trust BU,07/04/2022,OPERATING EXPENDITURE,GENERAL AND ACUTE MEDICINE,Medtronic Ltd,1204954178,"25,920.00",Pacemakers
York and Scarborough Teaching Hospitals NHS Foundation Trust,York and Scarborough Teaching Hospitals NHS Foundation Trust BU,11/04/2022,OPERATING EXPENDITURE,GENERAL AND ACUTE MEDICINE,Medtronic Ltd,1204957685,"51,840.00",Pacemakers
York and Scarborough Teaching Hospitals NHS Foundation Trust,York and Scarborough Teaching Hospitals NHS Foundation Trust BU,28/04/2022,OPERATING EXPENDITURE,GENERAL AND ACUTE MEDICINE,Medtronic Ltd,1204982511,"68,850.00",Pacemakers
York and Scarborough Teaching Hospitals NHS Foundation Trust,York and Scarborough Teaching Hospitals NHS Foundation Trust BU,31/03/2022,OPERATING EXPENDITURE,SYSTEMS & NETWORK SERVICES,ITHealth U.K. Ltd,131746,"98,978.40",Computer Hardware Purchases
York and Scarborough Teaching Hospitals NHS Foundation Trust,York and Scarborough Teaching Hospitals NHS Foundation Trust BU,11/04/2022,BALANCE SHEET,FINANCE - BALANCE SHEET,Roche Products Ltd,1322235283,"35,827.68",Raw Materials And Consumables
York and Scarborough Teaching Hospitals NHS Foundation Trust,York and Scarborough Teaching Hospitals NHS Foundation Trust BU,26/04/2022,BALANCE SHEET,FINANCE - BALANCE SHEET,Roche Products Ltd,1322237044,"37,259.27",Vat Debtor < One Year
York and Scarborough Teaching Hospitals NHS Foundation Trust,York and Scarborough Teaching Hospitals NHS Foundation Trust BU,28/04/2022,BALANCE SHEET,FINANCE - BALANCE SHEET,Roche Products Ltd,1322237258,"36,660.00",Raw Materials And Consumables
York and Scarborough Teaching Hospitals NHS Foundation Trust,York Teaching Hospital Facilities Management LLP BU,12/05/2022,BALANCE SHEET,LLP FINANCE - BALANCE SHEET,Walter West Builders Ltd,17129,"33,199.31",Work-In-Progress
York and Scarborough Teaching Hospitals NHS Foundation Trust,York and Scarborough Teaching Hospitals NHS Foundation Trust BU,30/03/2022,OPERATING EXPENDITURE,CHAIRMAN & CHIEF EXECUTIVES OFFICE,Mazars Llp,1999033,"29,899.20",Audit Fees : Statutory
York and Scarborough Teaching Hospitals NHS Foundation Trust,York and Scarborough Teaching Hospitals NHS Foundation Trust BU,14/04/2022,BALANCE SHEET,FINANCE - BALANCE SHEET,York Teaching Hospitals Facilities Management LLP,2020001635,"9,479,764.51",Amounts Owed To JV And Associates > One Year
York and Scarborough Teaching Hospitals NHS Foundation Trust,York and Scarborough Teaching Hospitals NHS Foundation Trust BU,07/04/2022,DIGITAL INFORMATION SERVICES,Digital Information Services,Insight Direct (Uk) Ltd,2100194083,"33,703.20",Computer Software / License  Fees
York and Scarborough Teaching Hospitals NHS Foundation Trust,York and Scarborough Teaching Hospitals NHS Foundation Trust BU,29/04/2022,OPERATING EXPENDITURE,SYSTEMS & NETWORK SERVICES,Insight Direct (Uk) Ltd,2100216939,"35,129.28",Computer Maintenance
York and Scarborough Teaching Hospitals NHS Foundation Trust,York Teaching Hospital Facilities Management LLP BU,06/04/2022,OPERATING EXPENDITURE,LLP ESTATES & FACILITIES_OLD,NHS Supply Chain - Maintenance,2123000131,"72,588.54",Med Surg Eqpt Mtce Contracts
York and Scarborough Teaching Hospitals NHS Foundation Trust,York Teaching Hospital Facilities Management LLP BU,05/05/2022,OPERATING EXPENDITURE,LLP ESTATES & FACILITIES_OLD,NHS Supply Chain - Maintenance,2123000982,"31,386.08",Med Surg Eqpt Mtce Contracts
York and Scarborough Teaching Hospitals NHS Foundation Trust,York and Scarborough Teaching Hospitals NHS Foundation Trust BU,30/04/2022,OPERATING EXPENDITURE,FINANCE,Clarity Workforce Technology Ltd,21265,"25,811.40",Professional Fees
York and Scarborough Teaching Hospitals NHS Foundation Trust,York and Scarborough Teaching Hospitals NHS Foundation Trust BU,25/04/2022,BALANCE SHEET,FINANCE - BALANCE SHEET,Baxter Healthcare Ltd,22099950,"28,806.66",Raw Materials And Consumables
York and Scarborough Teaching Hospitals NHS Foundation Trust,York and Scarborough Teaching Hospitals NHS Foundation Trust BU,31/03/2022,OPERATING EXPENDITURE,MEDICAL GOVERNANCE,Eido Healthcare Ltd,22J0305,"37,160.21",Legal Fees
York and Scarborough Teaching Hospitals NHS Foundation Trust,York and Scarborough Teaching Hospitals NHS Foundation Trust BU,22/04/2022,OPERATING EXPENDITURE,SPECIALIST MEDICINE DIRECTORATE,Harrogate And District NHS Foundation Trust,2510044105,"28,178.00",Consultant
York and Scarborough Teaching Hospitals NHS Foundation Trust,York Teaching Hospital Facilities Management LLP BU,12/04/2022,OPERATING EXPENDITURE,LLP ESTATES & FACILITIES_OLD,TotalEnergies Gas & Power Ltd,264174564/22,"38,193.13",Gas
York and Scarborough Teaching Hospitals NHS Foundation Trust,York Teaching Hospital Facilities Management LLP BU,12/04/2022,OPERATING EXPENDITURE,LLP ESTATES & FACILITIES_OLD,TotalEnergies Gas & Power Ltd,264175730/22,"118,569.67",Gas
York and Scarborough Teaching Hospitals NHS Foundation Trust,York Teaching Hospital Facilities Management LLP BU,12/04/2022,OPERATING EXPENDITURE,LLP ESTATES & FACILITIES_OLD,TotalEnergies Gas & Power Ltd,264175785/22,"213,023.26",Gas
York and Scarborough Teaching Hospitals NHS Foundation Trust,York and Scarborough Teaching Hospitals NHS Foundation Trust BU,04/02/2022,OPERATING EXPENDITURE,LABORATORY MEDICINE,Sysmex U K Ltd,3049271284,"26,343.78",Laboratory Chemicals
York and Scarborough Teaching Hospitals NHS Foundation Trust,York and Scarborough Teaching Hospitals NHS Foundation Trust BU,02/03/2022,OPERATING EXPENDITURE,LABORATORY MEDICINE,Sysmex U K Ltd,3049275289,"26,343.78",Laboratory Chemicals
York and Scarborough Teaching Hospitals NHS Foundation Trust,York and Scarborough Teaching Hospitals NHS Foundation Trust BU,06/04/2022,BALANCE SHEET,FINANCE - BALANCE SHEET,Sysmex U K Ltd,3049280502,"33,957.53",Vat Debtor < One Year
York and Scarborough Teaching Hospitals NHS Foundation Trust,York and Scarborough Teaching Hospitals NHS Foundation Trust BU,06/04/2022,OPERATING EXPENDITURE,LABORATORY MEDICINE,Sysmex U K Ltd,3049280504,"26,343.78",Laboratory Chemicals
York and Scarborough Teaching Hospitals NHS Foundation Trust,York Teaching Hospital Facilities Management LLP BU,24/03/2022,BALANCE SHEET,LLP FINANCE - BALANCE SHEET,Hill-Rom Ltd,3215320,"103,841.81",Work-In-Progress
York and Scarborough Teaching Hospitals NHS Foundation Trust,York and Scarborough Teaching Hospitals NHS Foundation Trust BU,29/03/2022,CAPITAL,I.T PLANNING,Telef�nica Tech NI Ltd,34834-A,"28,462.80",Additions - Information Technology
York and Scarborough Teaching Hospitals NHS Foundation Trust,York and Scarborough Teaching Hospitals NHS Foundation Trust BU,31/03/2022,Capital CG,IT Planning,Telef�nica Tech NI Ltd,34914-A,"499,558.52",Additions - Information Technology
York and Scarborough Teaching Hospitals NHS Foundation Trust,York and Scarborough Teaching Hospitals NHS Foundation Trust BU,31/03/2022,CAPITAL,I.T PLANNING,Telef�nica Tech NI Ltd,34915-A,"448,188.19",Additions - Information Technology
York and Scarborough Teaching Hospitals NHS Foundation Trust,York and Scarborough Teaching Hospitals NHS Foundation Trust BU,31/03/2022,CAPITAL,I.T PLANNING,Telef�nica Tech NI Ltd,34916-A,"508,593.60",Additions - Information Technology
York and Scarborough Teaching Hospitals NHS Foundation Trust,York and Scarborough Teaching Hospitals NHS Foundation Trust BU,31/03/2022,CAPITAL,I.T PLANNING,Telef�nica Tech NI Ltd,34917-A,"26,973.02",Additions - Information Technology
York and Scarborough Teaching Hospitals NHS Foundation Trust,York and Scarborough Teaching Hospitals NHS Foundation Trust BU,11/04/2022,OPERATING EXPENDITURE,SYSTEMS & NETWORK SERVICES,Telef�nica Tech NI Ltd,35042-A,"198,970.80",Computer Maintenance
York and Scarborough Teaching Hospitals NHS Foundation Trust,York and Scarborough Teaching Hospitals NHS Foundation Trust BU,03/05/2022,BALANCE SHEET,FINANCE - BALANCE SHEET,Biotest (U.K.) Ltd,3950020175,"28,176.00",Raw Materials And Consumables
York and Scarborough Teaching Hospitals NHS Foundation Trust,York Teaching Hospital Facilities Management LLP BU,30/04/2022,OPERATING EXPENDITURE,LLP ESTATES & FACILITIES_OLD,Synergy Health Managed Services Ltd,40004173,"63,760.40",External Contracts : Laundry
York and Scarborough Teaching Hospitals NHS Foundation Trust,York Teaching Hospital Facilities Management LLP BU,30/04/2022,OPERATING EXPENDITURE,LLP ESTATES & FACILITIES_OLD,Synergy Health Managed Services Ltd,40004174,"80,983.46",External Contracts : Laundry
York and Scarborough Teaching Hospitals NHS Foundation Trust,York Teaching Hospital Facilities Management LLP BU,24/03/2022,OPERATING EXPENDITURE,LLP ESTATES & FACILITIES_OLD,De Smit Medical Systems Ltd,43052,"62,400.00",Med Surg Eqpt General
York and Scarborough Teaching Hospitals NHS Foundation Trust,York Teaching Hospital Facilities Management LLP BU,24/03/2022,OPERATING EXPENDITURE,LLP ESTATES & FACILITIES_OLD,De Smit Medical Systems Ltd,43053,"40,638.00",Med Surg Eqpt General
York and Scarborough Teaching Hospitals NHS Foundation Trust,York Teaching Hospital Facilities Management LLP BU,17/05/2022,BALANCE SHEET,LLP FINANCE - BALANCE SHEET,Hm Revenue And Customs,475PS01299816MAY22,"428,652.91",Tax And Social Security Costs < One Year
York and Scarborough Teaching Hospitals NHS Foundation Trust,York and Scarborough Teaching Hospitals NHS Foundation Trust BU,13/04/2022,BALANCE SHEET,FINANCE - BALANCE SHEET,Independent Clinical Services Ltd Ta Thornbury Nursing Services,5841509,"45,000.49",Other Debtors < One Year
York and Scarborough Teaching Hospitals NHS Foundation Trust,York and Scarborough Teaching Hospitals NHS Foundation Trust BU,13/04/2022,BALANCE SHEET,FINANCE - BALANCE SHEET,Independent Clinical Services Ltd Ta Thornbury Nursing Services,5841509,"45,000.49",Vat Debtor < One Year
York and Scarborough Teaching Hospitals NHS Foundation Trust,York and Scarborough Teaching Hospitals NHS Foundation Trust BU,20/04/2022,BALANCE SHEET,FINANCE - BALANCE SHEET,Independent Clinical Services Ltd Ta Thornbury Nursing Services,5851737,"113,930.73",Other Debtors < One Year
York and Scarborough Teaching Hospitals NHS Foundation Trust,York and Scarborough Teaching Hospitals NHS Foundation Trust BU,20/04/2022,BALANCE SHEET,FINANCE - BALANCE SHEET,Independent Clinical Services Ltd Ta Thornbury Nursing Services,5851737,"113,930.73",Other Debtors < One Year
York and Scarborough Teaching Hospitals NHS Foundation Trust,York and Scarborough Teaching Hospitals NHS Foundation Trust BU,17/05/2022,BALANCE SHEET,FINANCE - BALANCE SHEET,Hm Revenue And Customs,585PD00115336MAY22,"9,070,978.39",Tax And Social Security Costs < One Year
York and Scarborough Teaching Hospitals NHS Foundation Trust,York and Scarborough Teaching Hospitals NHS Foundation Trust BU,04/05/2022,BALANCE SHEET,FINANCE - BALANCE SHEET,Independent Clinical Services Ltd Ta Thornbury Nursing Services,5875298,"47,323.25",Other Debtors < One Year
York and Scarborough Teaching Hospitals NHS Foundation Trust,York and Scarborough Teaching Hospitals NHS Foundation Trust BU,04/05/2022,BALANCE SHEET,FINANCE - BALANCE SHEET,Independent Clinical Services Ltd Ta Thornbury Nursing Services,5875298,"47,323.25",Vat Debtor < One Year
York and Scarborough Teaching Hospitals NHS Foundation Trust,York and Scarborough Teaching Hospitals NHS Foundation Trust BU,31/03/2022,Cancer and Support Services,Hull York Pathology Service,Institute Of Biomedical Science,734401,"37,000.00",Training Expenses
York and Scarborough Teaching Hospitals NHS Foundation Trust,York and Scarborough Teaching Hospitals NHS Foundation Trust BU,23/03/2022,BALANCE SHEET,FINANCE - BALANCE SHEET,Bayer Plc,824C407367,"91,245.60",Vat Debtor < One Year
York and Scarborough Teaching Hospitals NHS Foundation Trust,York and Scarborough Teaching Hospitals NHS Foundation Trust BU,31/03/2022,BALANCE SHEET,FINANCE - BALANCE SHEET,Bayer Plc,824C408708,"45,622.80",Raw Materials And Consumables
York and Scarborough Teaching Hospitals NHS Foundation Trust,York and Scarborough Teaching Hospitals NHS Foundation Trust BU,08/04/2022,BALANCE SHEET,FINANCE - BALANCE SHEET,Bayer Plc,824C410246,"91,245.60",Raw Materials And Consumables
York and Scarborough Teaching Hospitals NHS Foundation Trust,York and Scarborough Teaching Hospitals NHS Foundation Trust BU,08/04/2022,BALANCE SHEET,FINANCE - BALANCE SHEET,Bayer Plc,824C410247,"91,245.60",Raw Materials And Consumables
York and Scarborough Teaching Hospitals NHS Foundation Trust,York and Scarborough Teaching Hospitals NHS Foundation Trust BU,08/04/2022,BALANCE SHEET,FINANCE - BALANCE SHEET,Bayer Plc,824C410248,"91,245.60",Raw Materials And Consumables
York and Scarborough Teaching Hospitals NHS Foundation Trust,York and Scarborough Teaching Hospitals NHS Foundation Trust BU,20/04/2022,BALANCE SHEET,FINANCE - BALANCE SHEET,Bayer Plc,824C413131,"91,245.60",Raw Materials And Consumables
York and Scarborough Teaching Hospitals NHS Foundation Trust,York and Scarborough Teaching Hospitals NHS Foundation Trust BU,20/04/2022,BALANCE SHEET,FINANCE - BALANCE SHEET,Bayer Plc,824C413133,"45,622.80",Raw Materials And Consumables
York and Scarborough Teaching Hospitals NHS Foundation Trust,York and Scarborough Teaching Hospitals NHS Foundation Trust BU,22/04/2022,BALANCE SHEET,FINANCE - BALANCE SHEET,Bayer Plc,824C413566,"91,245.60",Raw Materials And Consumables
York and Scarborough Teaching Hospitals NHS Foundation Trust,York and Scarborough Teaching Hospitals NHS Foundation Trust BU,22/04/2022,BALANCE SHEET,FINANCE - BALANCE SHEET,Bayer Plc,824C413567,"91,245.60",Raw Materials And Consumables
York and Scarborough Teaching Hospitals NHS Foundation Trust,York and Scarborough Teaching Hospitals NHS Foundation Trust BU,29/04/2022,BALANCE SHEET,FINANCE - BALANCE SHEET,Bayer Plc,824C415196,"45,622.80",Raw Materials And Consumables
York and Scarborough Teaching Hospitals NHS Foundation Trust,York and Scarborough Teaching Hospitals NHS Foundation Trust BU,04/05/2022,BALANCE SHEET,FINANCE - BALANCE SHEET,Bayer Plc,824C415432,"45,622.80",Raw Materials And Consumables
York and Scarborough Teaching Hospitals NHS Foundation Trust,York and Scarborough Teaching Hospitals NHS Foundation Trust BU,07/04/2022,BALANCE SHEET,FINANCE - BALANCE SHEET,Bayer Plc,824c410019,"45,622.80",Raw Materials And Consumables
York and Scarborough Teaching Hospitals NHS Foundation Trust,York and Scarborough Teaching Hospitals NHS Foundation Trust BU,22/04/2022,BALANCE SHEET,FINANCE - BALANCE SHEET,Bayer Plc,824c413568,"91,245.60",Vat Debtor < One Year
York and Scarborough Teaching Hospitals NHS Foundation Trust,York and Scarborough Teaching Hospitals NHS Foundation Trust BU,27/04/2022,Cancer and Support Services,Hull York Pathology Service,Werfen Ltd,9100397480,"27,752.88",Laboratory Equipment - Maintenance
York and Scarborough Teaching Hospitals NHS Foundation Trust,York and Scarborough Teaching Hospitals NHS Foundation Trust BU,03/05/2022,BALANCE SHEET,FINANCE - BALANCE SHEET,Alexion Pharma Uk Ltd,91179998,"31,168.80",Vat Debtor < One Year
York and Scarborough Teaching Hospitals NHS Foundation Trust,York and Scarborough Teaching Hospitals NHS Foundation Trust BU,06/04/2022,Cancer and Support Services,Hull York Pathology Service,Cepheid Uk Ltd,9230032156,"99,408.00",Laboratory Test Kits
York and Scarborough Teaching Hospitals NHS Foundation Trust,York and Scarborough Teaching Hospitals NHS Foundation Trust BU,25/04/2022,Cancer and Support Services,Hull York Pathology Service,Cepheid Uk Ltd,9230032508,"99,408.00",Laboratory Test Kits
York and Scarborough Teaching Hospitals NHS Foundation Trust,York and Scarborough Teaching Hospitals NHS Foundation Trust BU,08/04/2022,BALANCE SHEET,FINANCE - BALANCE SHEET,Novartis Pharmaceuticals Uk Ltd,92591398,"32,054.40",Vat Debtor < One Year
York and Scarborough Teaching Hospitals NHS Foundation Trust,York Teaching Hospital Facilities Management LLP BU,07/04/2022,BALANCE SHEET,LLP FINANCE - BALANCE SHEET,NHS Supply Chain Co-ordination Limited,9523000013,"78,545.47",Work-In-Progress
York and Scarborough Teaching Hospitals NHS Foundation Trust,York and Scarborough Teaching Hospitals NHS Foundation Trust BU,06/04/2022,BALANCE SHEET,FINANCE - BALANCE SHEET,Csl Behring Uk Ltd,99405194,"55,880.00",Vat Debtor < One Year
York and Scarborough Teaching Hospitals NHS Foundation Trust,York and Scarborough Teaching Hospitals NHS Foundation Trust BU,17/05/2022,BALANCE SHEET,FINANCE - BALANCE SHEET,Aah Hospital Service,APRIL2022DGH,"70,540.65",Raw Materials And Consumables
York and Scarborough Teaching Hospitals NHS Foundation Trust,York and Scarborough Teaching Hospitals NHS Foundation Trust BU,17/05/2022,BALANCE SHEET,FINANCE - BALANCE SHEET,Aah Hospital Service,APRIL2022YORK,"140,501.45",Raw Materials And Consumables
York and Scarborough Teaching Hospitals NHS Foundation Trust,York and Scarborough Teaching Hospitals NHS Foundation Trust BU,31/01/2022,OPERATING EXPENDITURE,CHAIRMAN & CHIEF EXECUTIVES OFFICE,Insource Select Ltd,CI-0000009193,"33,936.00",Fm Computer Contracts
York and Scarborough Teaching Hospitals NHS Foundation Trust,York and Scarborough Teaching Hospitals NHS Foundation Trust BU,31/01/2022,OPERATING EXPENDITURE,CHAIRMAN & CHIEF EXECUTIVES OFFICE,Insource Select Ltd,CI-0000009194,"29,749.20",Fm Computer Contracts
York and Scarborough Teaching Hospitals NHS Foundation Trust,York and Scarborough Teaching Hospitals NHS Foundation Trust BU,28/02/2022,OPERATING EXPENDITURE,CHAIRMAN & CHIEF EXECUTIVES OFFICE,Insource Select Ltd,CI-0000009294,"64,814.40",Fm Computer Contracts
York and Scarborough Teaching Hospitals NHS Foundation Trust,York and Scarborough Teaching Hospitals NHS Foundation Trust BU,16/03/2022,OPERATING EXPENDITURE,CHAIRMAN & CHIEF EXECUTIVES OFFICE,Insource Select Ltd,CI-0000009342,"44,646.00",Fm Computer Contracts
York and Scarborough Teaching Hospitals NHS Foundation Trust,York Teaching Hospital Facilities Management LLP BU,15/04/2022,OPERATING EXPENDITURE,LLP ESTATES & FACILITIES_OLD,Npower Ltd,CR02915549,"-54,931.15",Electricity
York and Scarborough Teaching Hospitals NHS Foundation Trust,York and Scarborough Teaching Hospitals NHS Foundation Trust BU,03/11/2021,OPERATING EXPENDITURE,ORTHOPAEDICS DIRECTORATE,East Coast Orthopaedics Llp,ECOSeptember2021,"90,644.52",Healthcare From Commercial Sector
York and Scarborough Teaching Hospitals NHS Foundation Trust,York and Scarborough Teaching Hospitals NHS Foundation Trust BU,01/02/2022,OPERATING EXPENDITURE,GENERAL MEDICINE - SCARBOROUGH,Regents Park Cardiovascular Solutions Ltd,GK04-01022022,"41,340.00",Rent
York and Scarborough Teaching Hospitals NHS Foundation Trust,York and Scarborough Teaching Hospitals NHS Foundation Trust BU,01/03/2022,OPERATING EXPENDITURE,GENERAL MEDICINE - SCARBOROUGH,Regents Park Cardiovascular Solutions Ltd,GK04-01032022,"41,340.00",Rent
York and Scarborough Teaching Hospitals NHS Foundation Trust,York and Scarborough Teaching Hospitals NHS Foundation Trust BU,21/04/2022,OPERATING EXPENDITURE,GENERAL AND ACUTE MEDICINE,Hull University Teaching Hospitals NHS Trust,H0040663,"58,330.00",Healthcare From NHS Trusts
York and Scarborough Teaching Hospitals NHS Foundation Trust,York and Scarborough Teaching Hospitals NHS Foundation Trust BU,27/04/2022,Cancer and Support Services,Hull York Pathology Service,Hull University Teaching Hospitals NHS Trust,H0040757,"160,123.85",Consultant
York and Scarborough Teaching Hospitals NHS Foundation Trust,York and Scarborough Teaching Hospitals NHS Foundation Trust BU,28/04/2022,Cancer and Support Services,Hull York Pathology Service,Hull University Teaching Hospitals NHS Trust,H0040770,"378,858.37",Travel Costs
York and Scarborough Teaching Hospitals NHS Foundation Trust,York and Scarborough Teaching Hospitals NHS Foundation Trust BU,28/04/2022,BALANCE SHEET,FINANCE - BALANCE SHEET,Hcl Doctors Ltd,HDSI0001473,"83,466.26",Other Debtors < One Year
York and Scarborough Teaching Hospitals NHS Foundation Trust,York Teaching Hospital Facilities Management LLP BU,31/03/2022,BALANCE SHEET,LLP FINANCE - BALANCE SHEET,Inivos Ltd,I000009928,"141,324.00",Work-In-Progress
York and Scarborough Teaching Hospitals NHS Foundation Trust,York Teaching Hospital Facilities Management LLP BU,15/04/2022,OPERATING EXPENDITURE,LLP ESTATES & FACILITIES_OLD,Npower Ltd,IN03269835,"110,316.97",Electricity
York and Scarborough Teaching Hospitals NHS Foundation Trust,York Teaching Hospital Facilities Management LLP BU,18/04/2022,OPERATING EXPENDITURE,LLP ESTATES & FACILITIES_OLD,Npower Ltd,IN03376522,"55,312.69",Electricity
York and Scarborough Teaching Hospitals NHS Foundation Trust,York Teaching Hospital Facilities Management LLP BU,27/04/2022,BALANCE SHEET,LLP FINANCE - BALANCE SHEET,Spacelabs Healthcare Ltd,IN306403,"234,016.32",Work-In-Progress
York and Scarborough Teaching Hospitals NHS Foundation Trust,York and Scarborough Teaching Hospitals NHS Foundation Trust BU,25/03/2022,OPERATING EXPENDITURE,MEDICAL GOVERNANCE,Inphase Ltd,INPUK5055,"48,600.00",Computer Software / License  Fees
York and Scarborough Teaching Hospitals NHS Foundation Trust,York and Scarborough Teaching Hospitals NHS Foundation Trust BU,26/04/2022,BALANCE SHEET,FINANCE - BALANCE SHEET,Sciensus Pharma Services Limited,INUK-001818012,"51,650.17",Raw Materials And Consumables
York and Scarborough Teaching Hospitals NHS Foundation Trust,York and Scarborough Teaching Hospitals NHS Foundation Trust BU,12/04/2022,OPERATING EXPENDITURE,SYSTEMS & NETWORK SERVICES,AHLC Solutions Limited,INV-0426,"30,000.00",Professional Fees
York and Scarborough Teaching Hospitals NHS Foundation Trust,York and Scarborough Teaching Hospitals NHS Foundation Trust BU,12/04/2022,DIGITAL INFORMATION SERVICES,Digital Information Services,AHLC Solutions Limited,INV-0428,"58,395.00",Fm Computer Contracts
York and Scarborough Teaching Hospitals NHS Foundation Trust,York and Scarborough Teaching Hospitals NHS Foundation Trust BU,18/02/2022,CAPITAL,I.T PLANNING,Xma Ltd,LB15242,"354,978.00",Additions - Information Technology
York and Scarborough Teaching Hospitals NHS Foundation Trust,York and Scarborough Teaching Hospitals NHS Foundation Trust BU,19/04/2022,OPERATING EXPENDITURE,SYSTEMS & NETWORK SERVICES,Phoenix Software Ltd,OP/I928325,"66,363.77",Computer Hardware Purchases
York and Scarborough Teaching Hospitals NHS Foundation Trust,York and Scarborough Teaching Hospitals NHS Foundation Trust BU,28/04/2022,CAPITAL,I.T PLANNING,Specialist Computer Centres Plc,OP/N155661,"37,145.88",Additions - Information Technology
York and Scarborough Teaching Hospitals NHS Foundation Trust,York and Scarborough Teaching Hospitals NHS Foundation Trust BU,30/04/2022,OPERATING EXPENDITURE,SEXUAL HEALTH,Preventx Ltd,PY742387,"32,524.90",Healthcare From Commercial Sector
York and Scarborough Teaching Hospitals NHS Foundation Trust,York Teaching Hospital Facilities Management LLP BU,25/03/2022,,,Vital Energi Solutions Ltd,SI-12865,"615,814.50",Work-In-Progress
York and Scarborough Teaching Hospitals NHS Foundation Trust,York Teaching Hospital Facilities Management LLP BU,25/03/2022,,,Vital Energi Solutions Ltd,SI-12866,"566,870.11",Work-In-Progress
York and Scarborough Teaching Hospitals NHS Foundation Trust,York Teaching Hospital Facilities Management LLP BU,30/04/2022,OPERATING EXPENDITURE,LLP ESTATES & FACILITIES_OLD,Vital Energi Solutions Ltd,SI-12949,"25,989.38",Energy Management Contracts
York and Scarborough Teaching Hospitals NHS Foundation Trust,York and Scarborough Teaching Hospitals NHS Foundation Trust BU,31/03/2022,OPERATING EXPENDITURE,RADIOLOGY,Everlight Radiology Limited,SIN009299,"42,260.29",Healthcare From Independent Sector
York and Scarborough Teaching Hospitals NHS Foundation Trust,York Teaching Hospital Facilities Management LLP BU,29/04/2022,BALANCE SHEET,LLP FINANCE - BALANCE SHEET,Hodgson Sayers Ltd,SIN060469,"25,361.51",Work-In-Progress
York and Scarborough Teaching Hospitals NHS Foundation Trust,York and Scarborough Teaching Hospitals NHS Foundation Trust BU,11/04/2022,BALANCE SHEET,FINANCE - BALANCE SHEET,Qualasept Ltd,SQS0133436,"28,569.12",Vat Debtor < One Year
